fUST/lending_fUST_20250621
["ID","MTS","AMOUNT","RATE_DAILY","PERIOD"]
[366834680,1750497038314,-500.0,0.00022119,2]
[366834682,1750497038323,-500.0,0.00022119,2]
[366834684,1750497038332,-500.0,0.00022119,2]
[366834686,1750497038342,-500.0,0.00022119,2]
[366834688,1750497038351,-500.0,0.00022119,2]
[366834690,1750497038361,-500.0,0.00022119,2]
[366834692,1750497038371,-500.0,0.00022119,2]
[366834695,1750497038381,-500.0,0.00022119,2]
[366834697,1750497038390,-500.0,0.00022119,2]
[366834699,1750497038399,-500.0,0.00022119,2]
[366834701,1750497038409,-500.0,0.00022119,2]
[366834703,1750497038418,-300.30244663,0.00022119,2]
[366834705,1750497038428,-500.0,0.00022119,2]
[366834707,1750497038437,-500.0,0.00022119,2]
[366834709,1750497038447,-500.0,0.00022119,2]
[366834711,1750497038456,-500.0,0.00022119,2]
[366834713,1750497038465,-500.0,0.00022119,2]
[366834715,1750497038474,-500.0,0.00022119,2]
[366834717,1750497038484,-500.0,0.00022119,2]
[366834719,1750497038493,-500.0,0.00022119,2]
[366834721,1750497038503,-500.0,0.00022119,2]
[366834723,1750497038512,-500.0,0.00022119,2]
[366834725,1750497038521,-500.0,0.00022119,2]
[366834727,1750497038531,-500.0,0.00022119,2]
[366834729,1750497038540,-500.0,0.00022119,2]
[366834731,1750497038550,-500.0,0.00022119,2]
[366834733,1750497038559,-500.0,0.00022119,2]
[366834735,1750497038570,-500.0,0.00022119,2]
[366834737,1750497038579,-199.05880459,0.00022119,2]
[366834739,1750497038589,-500.0,0.00022119,2]
[366834741,1750497038598,-168.07093347,0.00022119,2]
[366834743,1750497038608,-500.0,0.00022119,2]
[366834745,1750497038618,-500.0,0.00022119,2]
[366834747,1750497038628,-500.0,0.00022119,2]
[366834749,1750497038638,-500.0,0.00022119,2]
[366834751,1750497038648,-500.0,0.00022119,2]
[366834753,1750497038658,-500.0,0.00022119,2]
[366834755,1750497038667,-500.0,0.00022119,2]
[366834757,1750497038677,-500.0,0.00022119,2]
[366834759,1750497038686,-500.0,0.00022119,2]
[366834761,1750497038697,-500.0,0.00022119,2]
[366834763,1750497038707,-500.0,0.00022119,2]
[366834765,1750497038718,-500.0,0.00022119,2]
[366834767,1750497038728,-500.0,0.00022119,2]
[366834769,1750497038739,-500.0,0.00022119,2]
[366834771,1750497038751,-500.0,0.00022119,2]
[366834774,1750497038762,-500.0,0.00022119,2]
[366834775,1750497038772,-500.0,0.00022119,2]
[366834778,1750497038782,-500.0,0.00022119,2]
[366834780,1750497038793,-482.51353086,0.00022119,2]
[366834782,1750497038802,-500.0,0.00022119,2]
[366834784,1750497038811,-195.46271587,0.00022119,2]
[366834785,1750497038821,-500.0,0.00022119,2]
[366834788,1750497038831,-500.0,0.00022119,2]
[366834790,1750497038843,-500.0,0.00022119,2]
[366834792,1750497038853,-500.0,0.00022119,2]
[366834794,1750497038862,-500.0,0.00022119,2]
[366834796,1750497038872,-500.0,0.00022119,2]
[366834798,1750497038882,-307.98189419,0.00022119,2]
[366834799,1750497038898,-192.01810581,0.00022119,2]
[366834800,1750497038907,-500.0,0.00022119,2]
[366834801,1750497038917,-371.59578124,0.00022119,2]
[366834802,1750497038927,-500.0,0.00022119,2]
[366834803,1750497038937,-56.20694002,0.00022119,2]
[366834812,1750497040389,-443.79305998,0.00022119,2]
[366834813,1750497040399,-500.0,0.00022119,2]
[366834814,1750497040409,-351.64111839,0.00022119,2]
[366834815,1750497040443,-148.35888161,0.00022119,2]
[366834816,1750497040453,-283.56631929,0.00022119,2]
[366834817,1750497040465,-216.43368071,0.00022119,2]
[366834818,1750497040477,-500.0,0.00022119,2]
[366834819,1750497040487,-203.5921141,0.00022119,2]
[366834852,1750497043292,-296.4078859,0.00022119,2]
[366834853,1750497043304,-39.92926913,0.00022119,2]
[366834938,1750497586130,-460.0,0.00021999,2]
[366834939,1750497586152,-161.12748271,0.00022016,2]
[366834940,1750497586173,-300.0,0.00022114,2]
[366834941,1750497586195,-2608.08928291,0.00022115,2]
[366834942,1750497586223,-948.40390824,0.00022115,2]
[366834943,1750497586244,-44818.37932614,0.00022115,2]
[366835030,1750498052142,-1954.71881306,0.00020693,2]
[366835035,1750498148130,-3045.28118694,0.00020693,2]
[366835036,1750498148153,-179.08923565,0.0002101,2]
[366835037,1750498148173,-300.0,0.00021109,2]
[366835038,1750498148322,-192.91653483,0.0002111,2]
[366835039,1750498148346,-500.0,0.0002111,2]
[366835040,1750498148368,-500.0,0.0002111,2]
[366835041,1750498148391,-500.0,0.0002111,2]
[366835042,1750498148413,-500.0,0.0002111,2]
[366835043,1750498148434,-500.0,0.0002111,2]
[366835044,1750498148454,-500.0,0.0002111,2]
[366835045,1750498148474,-500.0,0.0002111,2]
[366835046,1750498148493,-500.0,0.0002111,2]
[366835047,1750498148513,-500.3111991,0.0002111,2]
[366835048,1750498148534,-213.50146962,0.0002111,2]
[366835049,1750498148555,-500.0,0.0002111,2]
[366835050,1750498148578,-500.0,0.0002111,2]
[366835051,1750498148599,-500.0,0.0002111,2]
[366835052,1750498148622,-615.05061481,0.0002111,2]
[366835053,1750498148645,-575.99547357,0.0002111,2]
[366835054,1750498148666,-368.81179217,0.0002111,2]
[366835055,1750498148688,-500.0,0.0002111,2]
[366835056,1750498148710,-500.0,0.0002111,2]
[366835057,1750498148733,-500.0,0.0002111,2]
[366835058,1750498148754,-500.0,0.0002111,2]
[366835059,1750498148775,-459.39826906,0.0002111,2]
[366835060,1750498148798,-500.0,0.0002111,2]
[366835061,1750498148822,-500.0,0.0002111,2]
[366835062,1750498148845,-500.0,0.0002111,2]
[366835063,1750498148867,-500.0,0.0002111,2]
[366835064,1750498148888,-500.0,0.0002111,2]
[366835065,1750498148910,-371.84865519,0.0002111,2]
[366835066,1750498148931,-500.0,0.0002111,2]
[366835067,1750498148952,-500.0,0.0002111,2]
[366835068,1750498148974,-500.0,0.0002111,2]
[366835069,1750498148996,-500.0,0.0002111,2]
[366835070,1750498149020,-500.0,0.0002111,2]
[366835071,1750498149042,-500.0,0.0002111,2]
[366835072,1750498149064,-318.84417169,0.0002111,2]
[366835073,1750498149087,-500.0,0.0002111,2]
[366835074,1750498149109,-500.0,0.0002111,2]
[366835075,1750498149131,-500.0,0.0002111,2]
[366835076,1750498149152,-500.0,0.0002111,2]
[366835077,1750498149173,-500.0,0.0002111,2]
[366835078,1750498149194,-500.0,0.0002111,2]
[366835079,1750498149216,-500.0,0.0002111,2]
[366835080,1750498149237,-500.0,0.0002111,2]
[366835081,1750498149258,-500.0,0.0002111,2]
[366835082,1750498149279,-500.0,0.0002111,2]
[366835083,1750498149300,-500.0,0.0002111,2]
[366835084,1750498149320,-500.0,0.0002111,2]
[366835085,1750498149342,-500.0,0.0002111,2]
[366835086,1750498149364,-500.0,0.0002111,2]
[366835087,1750498149385,-500.0,0.0002111,2]
[366835088,1750498149406,-500.0,0.0002111,2]
[366835089,1750498149427,-620.42211799,0.0002111,2]
[366835090,1750498149448,-500.0,0.0002111,2]
[366835091,1750498149470,-500.0,0.0002111,2]
[366835092,1750498149506,-500.0,0.0002111,2]
[366835093,1750498149533,-500.0,0.0002111,2]
[366835094,1750498149558,-500.0,0.0002111,2]
[366835095,1750498149584,-500.0,0.0002111,2]
[366835096,1750498149609,-500.0,0.0002111,2]
[366835097,1750498149639,-245.94460773,0.0002111,2]
[366835098,1750498149667,-500.0,0.0002111,2]
[366835099,1750498149692,-500.0,0.0002111,2]
[366835100,1750498149719,-500.0,0.0002111,2]
[366835101,1750498149743,-500.0,0.0002111,2]
[366835102,1750498149772,-500.0,0.0002111,2]
[366835103,1750498149797,-500.0,0.0002111,2]
[366835104,1750498149823,-500.0,0.0002111,2]
[366835105,1750498149850,-500.0,0.0002111,2]
[366835106,1750498149876,-500.0,0.0002111,2]
[366835107,1750498149902,-500.0,0.0002111,2]
[366835108,1750498149926,-500.0,0.0002111,2]
[366835109,1750498149951,-500.0,0.0002111,2]
[366835110,1750498149977,-500.0,0.0002111,2]
[366835111,1750498150004,-500.0,0.0002111,2]
[366835112,1750498150028,-500.0,0.0002111,2]
[366835113,1750498150052,-533.79906185,0.0002111,2]
[366835114,1750498150078,-500.0,0.0002111,2]
[366835115,1750498150103,-500.0,0.0002111,2]
[366835116,1750498150131,-500.0,0.0002111,2]
[366835117,1750498150157,-500.0,0.0002111,2]
[366835118,1750498150180,-210.18631874,0.0002111,2]
[366835119,1750498150205,-500.0,0.0002111,2]
[366835120,1750498150231,-500.0,0.0002111,2]
[366835121,1750498150259,-500.0,0.0002111,2]
[366835122,1750498150282,-500.0,0.0002111,2]
[366835123,1750498150306,-500.0,0.0002111,2]
[366835124,1750498150331,-500.0,0.0002111,2]
[366835125,1750498150356,-500.0,0.0002111,2]
[366835126,1750498150382,-500.0,0.0002111,2]
[366835127,1750498150407,-500.0,0.0002111,2]
[366835128,1750498150431,-500.0,0.0002111,2]
[366835129,1750498150456,-500.0,0.0002111,2]
[366835130,1750498150483,-500.0,0.0002111,2]
[366835131,1750498150510,-188.34021458,0.0002111,2]
[366835132,1750498150535,-500.0,0.0002111,2]
[366835133,1750498150560,-500.0,0.0002111,2]
[366835134,1750498150584,-500.0,0.0002111,2]
[366835135,1750498150610,-500.0,0.0002111,2]
[366835136,1750498150635,-28401.93411416,0.0002111,2]
[366835137,1750498150662,-444.0,0.00021111,2]
[366835138,1750498150685,-168.718,0.00021111,2]
[366835139,1750498150708,-300.0,0.00021111,2]
[366835140,1750498150731,-1304.04464146,0.00021114,2]
[366835141,1750498150756,-474.20195412,0.00021114,2]
[366835142,1750498150779,-151.0,0.00021114,2]
[366835143,1750498150803,-151.0,0.00021114,2]
[366835144,1750498150954,-17825.55,0.00021114,2]
[366835145,1750498150982,-4436.3971168,0.00021116,2]
[366835146,1750498151004,-500.0,0.00021173,2]
[366835147,1750498151024,-451.29546224,0.00021173,2]
[366835148,1750498151045,-500.0,0.00021173,2]
[366835149,1750498151066,-500.19961868,0.00021173,2]
[366835150,1750498151087,-500.0,0.000212,2]
[366835151,1750498151108,-503.79810707,0.000212,2]
[366835152,1750498151129,-500.0,0.000212,2]
[366835153,1750498151150,-550.35644472,0.000212,2]
[366835154,1750498151172,-607.53197589,0.000212,2]
[366835155,1750498151193,-500.0,0.000212,2]
[366835156,1750498151213,-458.65041313,0.000212,2]
[366835157,1750498153109,-41.34958687,0.000212,2]
[366835158,1750498153130,-500.95406167,0.000212,2]
[366835159,1750498153151,-500.0,0.000212,2]
[366835160,1750498153172,-1049.68,0.000212,2]
[366835161,1750498153193,-160.66411333,0.00021258,2]
[366835162,1750498153213,-151.66722043,0.00021721,2]
[366835163,1750498163099,-4277.14172632,0.00020988,2]
[366835164,1750498163121,-151.0,0.00021114,2]
[366835165,1750498164531,153.730834,0.00021114,2]
[366835166,1750498176105,837.85,0.00021104,10]
[366835167,1750498191439,151.0,0.00021114,2]
[366835175,1750498232349,-446.35625141,0.00021721,2]
[366835176,1750498232359,-500.0,0.00021748,2]
[366835177,1750498232372,-500.0,0.00021885,2]
[366835178,1750498232381,-500.0,0.00021885,2]
[366835179,1750498232391,-500.0,0.00021885,2]
[366835180,1750498232403,-462.24163283,0.000219,6]
[366835181,1750498232412,-462.24163263,0.00022003,6]
[366835182,1750498232421,-462.24163263,0.00022107,6]
[366835183,1750498232430,-152.522693,0.00022113,7]
[366835184,1750498232439,-151.0,0.00022113,7]
[366835185,1750498232448,-230.10342898,0.00022113,2]
[366835186,1750498232457,-151.0,0.00022114,7]
[366835187,1750498232475,-151.0,0.00022114,7]
[366835188,1750498232486,-151.0,0.00022114,7]
[366835189,1750498232496,-151.0,0.00022114,7]
[366835190,1750498232506,-151.0,0.00022114,7]
[366835191,1750498232516,-1000.0,0.00022119,2]
[366835192,1750498232527,-1000.0,0.00022119,2]
[366835193,1750498232536,-1000.0,0.00022119,2]
[366835194,1750498232546,-556.564882,0.00022119,2]
[366835195,1750498232689,-1000.0,0.00022124,2]
[366835196,1750498232699,-151.0,0.00022125,7]
[366835197,1750498232708,-151.0,0.00022125,7]
[366835198,1750498232718,-159.697698,0.00022125,7]
[366835199,1750498232728,-159.697698,0.00022125,7]
[366835200,1750498232738,-151.0,0.00022125,7]
[366835201,1750498232748,-151.0,0.00022125,7]
[366835202,1750498232757,-151.0,0.00022125,7]
[366835203,1750498232767,-151.0,0.00022125,7]
[366835204,1750498232777,-151.0,0.00022125,7]
[366835205,1750498232787,-151.0,0.00022125,7]
[366835206,1750498232797,-151.0,0.00022125,7]
[366835207,1750498232807,-151.0,0.00022125,7]
[366835208,1750498232817,-151.0,0.0002221,7]
[366835209,1750498232828,-151.0,0.0002221,7]
[366835210,1750498232837,-151.0,0.0002221,7]
[366835211,1750498232847,-462.24163263,0.0002221,6]
[366835212,1750498232856,-264.71654548,0.00022257,2]
[366835213,1750498232866,-500.0,0.00022292,2]
[366835214,1750498232876,-500.0,0.00022292,2]
[366835215,1750498232885,-475.18218582,0.00022292,2]
[366835216,1750498232895,-462.24163263,0.00022314,7]
[366835217,1750498232905,-1946.63965011,0.00022365,2]
[366835218,1750498232914,-462.24163263,0.00022417,7]
[366835219,1750498232924,-161.12748266,0.00022421,2]
[366835220,1750498232934,-1000.0,0.00022433,2]
[366835221,1750498232943,-795.59391599,0.00022433,2]
[366835222,1750498232954,-501.66409438,0.00022433,2]
[366835223,1750498232963,-500.0,0.00022462,2]
[366835225,1750498232973,-500.0,0.00022462,2]
[366835227,1750498232983,-500.9000928,0.00022462,2]
[366835229,1750498232992,-502.22246271,0.00022462,2]
[366835231,1750498233001,-500.0,0.00022519,2]
[366835233,1750498233011,-159.0806219,0.00022521,2]
[366835235,1750498233020,-153.0,0.00022521,2]
[366835237,1750498233030,-177.2671816,0.00022521,2]
[366835238,1750498233044,-593.2286649,0.00022521,2]
[366835239,1750498233054,-177.2671816,0.00022521,2]
[366835240,1750498233064,-159.0806219,0.00022521,2]
[366835241,1750498233075,-153.0,0.00022521,2]
[366835242,1750498233085,-480.62701667,0.00022521,2]
[366835708,1750498243587,-500.0,0.00022124,2]
[366835709,1750498243597,-313.20490797,0.00022124,2]
[366835710,1750498243606,-207.98318391,0.00022124,2]
[366835711,1750498243616,-500.0,0.00022124,2]
[366835712,1750498243626,-500.0,0.00022124,2]
[366835713,1750498243636,-500.0,0.00022124,2]
[366835714,1750498243645,-615.42211798,0.00022124,2]
[366835715,1750498243658,-37.98429908,0.00022521,2]
[366835747,1750498246259,-55.92596415,0.00022521,2]
[366835748,1750498246269,-159.0806219,0.00022521,2]
[366835749,1750498246279,-153.0,0.00022521,2]
[366835750,1750498246288,-574.5372799,0.00022521,2]
[366835751,1750498246297,-177.2671816,0.00022521,2]
[366835752,1750498246306,-574.5372799,0.00022521,2]
[366835753,1750498246315,-159.0806219,0.00022521,2]
[366835754,1750498246324,-177.2671816,0.00022521,2]
[366835755,1750498246333,-177.2671816,0.00022521,2]
[366835756,1750498246343,-153.0,0.00022521,2]
[366835757,1750498246353,-159.0806219,0.00022521,2]
[366835758,1750498246362,-176.1757817,0.00022521,2]
[366835759,1750498246372,-80.02312249,0.00022521,2]
[366835761,1750498246558,-237.49085371,0.00022521,2]
[366835762,1750498246567,-462.24163263,0.00022521,7]
[366835763,1750498246577,-151.0,0.00022567,7]
[366835764,1750498246587,-500.0,0.00022621,2]
[366835765,1750498246596,-462.24163263,0.00022624,7]
[366835767,1750498246606,-500.0,0.00022685,2]
[366835768,1750498246616,-500.0,0.00022685,2]
[366835769,1750498246625,-56.66701403,0.00022685,7]
[366836337,1750498258239,151.0,0.00021114,2]
[366836338,1750498260586,151.0,0.00021114,2]
[366836339,1750498276670,151.0,0.00021114,2]
[366836341,1750498292243,151.0,0.00021114,2]
[366836342,1750498309736,151.0,0.00021114,2]
[366836345,1750498386805,156.50427906,0.000245,120]
[366836346,1750498397502,155.90580605,0.000246,120]
[366836347,1750498414193,350.84671024,0.0002465,120]
[366836348,1750498422572,159.87781268,0.0002465,120]
[366836349,1750498429571,863.28059824,0.0002465,120]
[366836350,1750498449646,-151.88526998,0.00019995,2]
[366836352,1750498843479,-1617.66918549,0.00019995,2]
[366836353,1750498843505,-500.0,0.00020314,2]
[366836354,1750498843529,-500.0,0.00020314,2]
[366836355,1750498843554,-500.0,0.00020314,2]
[366836356,1750498843578,-500.0,0.00020314,2]
[366836357,1750498843602,-500.0,0.00020314,2]
[366836358,1750498843626,-500.0,0.00020314,2]
[366836359,1750498843650,-500.0,0.00020314,2]
[366836360,1750498843674,-500.0,0.00020314,2]
[366836361,1750498843697,-414.94406835,0.00020314,2]
[366836362,1750498843720,-500.0,0.00020314,2]
[366836363,1750498843745,-500.0,0.00020314,2]
[366836364,1750498843768,-500.0,0.00020314,2]
[366836365,1750498843792,-500.0,0.00020314,2]
[366836366,1750498843817,-500.0,0.00020314,2]
[366836367,1750498843840,-500.0,0.00020314,2]
[366836368,1750498843864,-462.56934906,0.00020314,2]
[366836369,1750498843889,-344.00427173,0.00020314,2]
[366836370,1750498843911,-639.58904412,0.00020314,2]
[366836371,1750498843947,-43772.22408125,0.00020315,2]
[366836372,1750498907788,-160.68617082,0.00020214,3]
[366836373,1750498907822,-300.0,0.00020313,2]
[366836374,1750498907848,-39.31382918,0.00020313,2]
[366836379,1750499248115,-300.0,0.00019568,2]
[366836380,1750499248141,-300.0,0.00019568,2]
[366836381,1750499248174,-500.0,0.00019568,2]
[366836382,1750499248195,-65.55275801,0.00019569,2]
[366836383,1750499345098,-300.0,0.00019568,2]
[366836384,1750499345623,-12864.4765824,0.00019569,2]
[366836385,1750499350094,-11969.97065959,0.00019569,2]
[366836386,1750499350114,-500.0,0.00020275,2]
[366836387,1750499350134,-500.0,0.00020275,2]
[366836388,1750499350155,-199.41511407,0.00020313,2]
[366836389,1750499350180,-500.0,0.00020412,2]
[366836390,1750499350203,-500.0,0.00020412,2]
[366836391,1750499350225,-500.0,0.00020412,2]
[366836392,1750499350247,-500.0,0.00020412,2]
[366836393,1750499350271,-500.0,0.00020412,2]
[366836394,1750499350294,-500.0,0.00020412,2]
[366836395,1750499350319,-500.0,0.00020412,2]
[366836396,1750499350340,-500.0,0.00020412,2]
[366836397,1750499350363,-500.0,0.00020412,2]
[366836398,1750499350386,-500.0,0.00020412,2]
[366836399,1750499350408,-500.0,0.00020412,2]
[366836400,1750499350431,-302.13825435,0.00020412,2]
[366836401,1750499350452,-25365.07146533,0.00020413,2]
[366836402,1750499352137,-20497.67297431,0.00020413,2]
[366836403,1750499352159,-461.0,0.00020415,3]
[366836404,1750499352185,-169.608,0.00020498,2]
[366836405,1750499352208,-173.94754156,0.00020548,2]
[366836406,1750499352231,-1000.0,0.00020823,2]
[366836407,1750499352252,-1008.03377348,0.00020823,2]
[366836408,1750499352282,-841.95880447,0.000209,4]
[366836409,1750499352303,-199.415114,0.00020968,2]
[366836410,1750499352331,-841.95880423,0.00021038,4]
[366836411,1750499352353,-500.0,0.00021067,2]
[366836412,1750499352373,-500.0,0.00021067,2]
[366836413,1750499352394,-500.0,0.00021163,2]
[366836414,1750499352421,-841.95880423,0.00021176,4]
[366836415,1750499352447,-841.95880423,0.00021314,5]
[366836416,1750499352468,-420.0,0.00021317,2]
[366836417,1750499352488,-420.0,0.00021317,2]
[366836418,1750499352509,-1000.0,0.00021371,2]
[366836419,1750499352538,-841.95880423,0.00021452,5]
[366836420,1750499352558,-434.5561559,0.00021589,2]
[366836421,1750499352585,-105.02545454,0.0002159,5]
[366836446,1750499432473,-605.45,0.00020951,2]
[366836448,1750499432486,-58.62807563,0.00020951,2]
[366836450,1750499432495,-398.44134764,0.00021163,2]
[366836455,1750499432526,-101.55865236,0.00021163,2]
[366836457,1750499432536,-736.93334969,0.0002159,5]
[366836459,1750499432545,-500.0,0.00021615,2]
[366836461,1750499432554,-841.95880423,0.00021728,5]
[366836463,1750499432563,-168.0,0.00021841,2]
[366836464,1750499432572,-251.54919372,0.00021866,6]
[366836467,1750499432587,-590.40961051,0.00021866,6]
[366836468,1750499432596,-186.4335805,0.00021882,2]
[366836470,1750499432606,-1200.0,0.00021916,2]
[366836472,1750499432615,-460.0,0.00021917,2]
[366836474,1750499432625,-163.01551262,0.00021917,2]
[366836477,1750499432637,-319.66808545,0.00021917,2]
[366836479,1750499432646,-420.10227579,0.00021917,2]
[366836481,1750499432655,-300.0,0.00021999,2]
[366836483,1750499432665,-97.72963876,0.00021999,2]
[366836485,1750499432677,-202.27036124,0.00021999,2]
[366836487,1750499432686,-4505.76390393,0.00022,4]
[366836489,1750499432696,-168.0,0.00022,2]
[366836491,1750499432705,-841.95880423,0.00022003,6]
[366836493,1750499432714,-151.0,0.00022114,7]
[366836495,1750499432724,-460.0,0.00022114,2]
[366836497,1750499432733,-841.95880423,0.00022141,6]
[366836499,1750499432742,-841.95880423,0.00022279,6]
[366836501,1750499432751,-391.71255,0.00022388,2]
[366836503,1750499432761,-841.95880423,0.00022417,7]
[366836505,1750499432770,-1000.0,0.00022461,2]
[366836507,1750499432779,-151.0,0.00022521,7]
[366836509,1750499432789,-168.0,0.0002254,2]
[366836511,1750499432798,-500.0,0.0002255,2]
[366836513,1750499432807,-841.95880423,0.00022555,7]
[366836515,1750499432816,-841.95880423,0.00022693,7]
[366836517,1750499432825,-151.0,0.00022717,7]
[366836518,1750499432838,-163.038704,0.00022717,7]
[366836520,1750499432848,-500.0,0.00022825,2]
[366836522,1750499432857,-500.0,0.00022825,2]
[366836524,1750499432865,-841.95880423,0.00022831,8]
[366836526,1750499432875,-151.0,0.00022911,7]
[366836528,1750499432884,-199.415114,0.00022934,2]
[366836530,1750499432896,-500.0,0.0002295,2]
[366836532,1750499432905,-501.12044681,0.0002295,2]
[366836534,1750499432914,-500.63534723,0.0002295,2]
[366836536,1750499432923,-841.95880423,0.00022969,8]
[366836538,1750499432933,-169.42703452,0.00023,2]
[366836540,1750499432942,-151.0,0.0002301,7]
[366836542,1750499432951,-151.0,0.0002301,7]
[366836544,1750499432960,-151.0,0.0002301,7]
[366836546,1750499432969,-151.0,0.0002301,7]
[366836548,1750499432978,-154.837119,0.0002301,7]
[366836550,1750499432987,-424.63478008,0.00023089,2]
[366836552,1750499432997,-1000.0,0.00023098,2]
[366836554,1750499433006,-460.0,0.00023103,2]
[366836556,1750499433016,-151.0,0.00023104,7]
[366836558,1750499433025,-151.0,0.00023104,7]
[366836560,1750499433035,-151.0,0.00023104,7]
[366836562,1750499433045,-207.4,0.00023104,2]
[366836564,1750499433054,-4814.58535612,0.00023104,2]
[366836567,1750499433066,-185.41464388,0.00023104,2]
[366836569,1750499433078,-1688.0,0.00023104,2]
[366836571,1750499433092,-500.0,0.00023104,2]
[366836573,1750499433101,-500.0,0.00023104,2]
[366836575,1750499433111,-500.0,0.00023104,2]
[366836577,1750499433120,-500.0,0.00023104,2]
[366836579,1750499433130,-500.0,0.00023104,2]
[366836581,1750499433140,-500.0,0.00023104,2]
[366836583,1750499433150,-500.0,0.00023104,2]
[366836585,1750499433160,-500.0,0.00023104,2]
[366836587,1750499433169,-500.0,0.00023104,2]
[366836589,1750499433179,-500.0,0.00023104,2]
[366836591,1750499433189,-500.0,0.00023104,2]
[366836593,1750499433202,-500.0,0.00023104,2]
[366836595,1750499433211,-215.19780498,0.00023104,2]
[366836597,1750499433224,-284.80219502,0.00023104,2]
[366836599,1750499433235,-197.04349521,0.00023104,2]
[366836724,1750499438398,-1000.0,0.00022945,2]
[366836727,1750499438409,-1000.0,0.00023103,2]
[366836729,1750499438419,-130.1,0.00023103,2]
[366836739,1750499438506,-369.9,0.00023103,2]
[366836740,1750499438515,-500.0,0.00023103,2]
[366836742,1750499438525,-500.0,0.00023103,2]
[366836743,1750499438534,-500.0,0.00023103,2]
[366836744,1750499438543,-500.0,0.00023103,2]
[366836745,1750499438553,-500.0,0.00023103,2]
[366836746,1750499438563,-500.0,0.00023103,2]
[366836747,1750499438572,-83.41703718,0.00023103,2]
[366836951,1750499440666,-416.58296282,0.00023103,2]
[366836953,1750499440676,-302.95650479,0.00023104,2]
[366836955,1750499440685,-500.0,0.00023104,2]
[366836956,1750499440695,-500.0,0.00023104,2]
[366836958,1750499440704,-500.0,0.00023104,2]
[366836961,1750499440715,-500.0,0.00023104,2]
[366836962,1750499440724,-500.0,0.00023104,2]
[366836965,1750499440734,-514.42399439,0.00023104,2]
[366836967,1750499440744,-500.0,0.00023104,2]
[366836969,1750499440754,-500.0,0.00023104,2]
[366836971,1750499440764,-500.0,0.00023104,2]
[366836973,1750499440773,-500.0,0.00023104,2]
[366836975,1750499440782,-841.95880423,0.00023107,8]
[366836988,1750499440891,-151.0,0.00023107,7]
[366836990,1750499440902,-177.048264,0.00023107,7]
[366836992,1750499440911,-151.0,0.00023107,7]
[366836994,1750499440920,-151.0,0.00023107,7]
[366836996,1750499440931,-475.92221856,0.0002315,2]
[366836998,1750499440940,-1750.456,0.00023159,2]
[366837000,1750499440950,-379.30125121,0.00023168,2]
[366837194,1750499443707,-620.69874879,0.00023168,2]
[366837195,1750499443717,-151.0,0.00023169,7]
[366837196,1750499443726,-151.398963,0.00023169,7]
[366837197,1750499443738,-151.0,0.00023169,7]
[366837198,1750499443747,-151.0,0.00023169,7]
[366837199,1750499443757,-500.0,0.00023191,2]
[366837200,1750499443766,-151.0,0.00023207,7]
[366837201,1750499443775,-178.418905,0.00023214,7]
[366837202,1750499443784,-178.418905,0.00023214,7]
[366837203,1750499443793,-151.0,0.00023214,7]
[366837204,1750499443803,-1882.38611826,0.00023214,2]
[366837205,1750499443813,-587.0,0.00023222,2]